fUSD/lending_fUSD_20241210
["ID","MTS","AMOUNT","RATE_DAILY","PERIOD"]
[344862583,1733839903178,-1262.0,0.0001129,2]
[344862584,1733839903188,-2005.0,0.0001129,2]
[344862585,1733839903199,-634.123,0.0001129,2]
[344862586,1733839903210,-150.0,0.0001129,2]
[344862587,1733839903221,-564.0,0.0001129,2]
[344862588,1733839903232,-1894.0,0.0001129,2]
[344862589,1733839903241,-817.0,0.0001129,2]
[344862590,1733839903251,-3763.0,0.0001129,2]
[344862591,1733839903260,-1253.0,0.0001129,2]
[344862592,1733839903270,-535.0,0.0001129,2]
[344862593,1733839903280,-973.0,0.0001129,2]
[344862594,1733839903290,-3595.0,0.0001129,2]
[344862595,1733839903299,-2000.0,0.00011323,2]
[344862596,1733839903309,-274.05,0.00011416,2]
[344862597,1733839903318,-1000.0,0.00011421,2]
[344862598,1733839903328,-450.0,0.00011474,2]
[344862599,1733839903342,-2751.0,0.00011507,2]
[344862600,1733839903351,-675.30474198,0.00011539,2]
[344862601,1733839903361,-1500.0,0.00011662,2]
[344862602,1733839903371,-1500.0,0.00011758,2]
[344862603,1733839903381,-1200.0,0.00011772,2]
[344862604,1733839903390,-1500.0,0.00011791,2]
[344862605,1733839903400,-150.0,0.00011793,2]
[344862606,1733839903409,-150.0,0.00011844,2]
[344862607,1733839903419,-1500.0,0.00011877,2]
[344862608,1733839903430,-675.30474198,0.00011879,2]
[344862609,1733839903439,-274.05,0.00011892,2]
[344862610,1733839903448,-3600.0,0.000119,4]
[344862611,1733839903458,-162.23802384,0.000119,2]
[344862612,1733839903467,-150.0,0.00011929,2]
[344862613,1733839903479,-1500.0,0.00011947,2]
[344862614,1733839903489,-150.0,0.00011947,2]
[344862615,1733839903498,-7631.29,0.00011949,2]
[344862616,1733839903507,-200.0,0.00011954,2]
[344862617,1733839903516,-1000.0,0.00011966,2]
[344862618,1733839903526,-1500.0,0.00011981,2]
[344862619,1733839903535,-157.2,0.00012,2]
[344862620,1733839903545,-500.0,0.00012,2]
[344862621,1733839903555,-9876.27644983,0.00012,2]
[344862622,1733839903565,-1500.0,0.00012011,2]
[344862623,1733839903574,-150.0,0.00012022,2]
[344862624,1733839903583,-150.0,0.00012066,2]
[344862625,1733839903596,-150.0,0.0001208,2]
[344862626,1733839903605,-151.39,0.00012084,2]
[344862627,1733839903614,-150.0,0.00012112,2]
[344862628,1733839903624,-150.0,0.0001212,2]
[344862629,1733839903633,-150.0,0.00012157,2]
[344862630,1733839903643,-1500.0,0.00012179,2]
[344862631,1733839903652,-150.0,0.00012186,2]
[344862632,1733839903662,-675.30474198,0.00012219,2]
[344862633,1733839903672,-1500.0,0.00012248,2]
[344862634,1733839903681,-150.0,0.00012266,2]
[344862635,1733839903691,-494.36792585,0.00012279,2]
[344862636,1733839903700,-150.0,0.00012279,2]
[344862637,1733839903709,-150.0,0.00012281,2]
[344862638,1733839903719,-150.0,0.00012282,2]
[344862639,1733839903728,-150.0,0.00012283,2]
[344862640,1733839903738,-150.0,0.00012304,2]
[344862641,1733839903748,-150.0,0.0001231,2]
[344862642,1733839903758,-2333.1,0.00012328,2]
[344862643,1733839903767,-2333.1,0.00012328,2]
[344862644,1733839903778,-2333.1,0.00012328,2]
[344862645,1733839903788,-2333.1,0.00012328,2]
[344862646,1733839903798,-2333.1,0.00012328,2]
[344862647,1733839903808,-2333.1,0.00012328,2]
[344862648,1733839903818,-2333.1,0.00012328,2]
[344862649,1733839903827,-2333.1,0.00012328,2]
[344862650,1733839903836,-2333.1,0.00012328,2]
[344862651,1733839903851,-2333.1,0.00012328,2]
[344862652,1733839903861,-2333.1,0.00012328,2]
[344862653,1733839903871,-2333.1,0.00012328,2]
[344862654,1733839903880,-2333.1,0.00012328,2]
[344862655,1733839903890,-2333.1,0.00012328,2]
[344862656,1733839903899,-2333.1,0.00012328,2]
[344862657,1733839903909,-2333.1,0.00012328,2]
[344862658,1733839903918,-2333.1,0.00012328,2]
[344862659,1733839903928,-2333.1,0.00012328,2]
[344862660,1733839903937,-2333.1,0.00012328,2]
[344862661,1733839903947,-2333.1,0.00012328,2]
[344862662,1733839903956,-2333.1,0.00012328,2]
[344862663,1733839903965,-2333.1,0.00012328,2]
[344862664,1733839903975,-2333.1,0.00012328,2]
[344862665,1733839903985,-2333.27406827,0.00012328,2]
[344862666,1733839903994,-150.0,0.00012341,2]
[344862667,1733839904004,-150.0,0.00012342,2]
[344862668,1733839904013,-384.319,0.0001235,2]
[344862669,1733839904023,-150.0,0.00012361,2]
[344862670,1733839904032,-274.05,0.00012367,2]
[344862671,1733839904042,-642.3,0.00012398,2]
[344862672,1733839904051,-642.3,0.00012398,2]
[344862673,1733839904061,-642.3,0.00012398,2]
[344862674,1733839904071,-1372.5,0.00012398,2]
[344862675,1733839904081,-1372.5,0.00012398,2]
[344862676,1733839904096,-1372.5,0.00012398,2]
[344862677,1733839904105,-500.0,0.00012398,2]
[344862678,1733839904115,-500.0,0.00012398,2]
[344862679,1733839904125,-501.3,0.00012398,2]
[344862680,1733839904134,-500.0,0.00012398,2]
[344862681,1733839904144,-500.0,0.00012398,2]
[344862682,1733839904154,-500.0,0.00012398,2]
[344862683,1733839904164,-2382.05,0.00012398,2]
[344862684,1733839904174,-2382.05,0.00012398,2]
[344862685,1733839904184,-2382.05,0.00012398,2]
[344862686,1733839904194,-153.09203379,0.00012398,2]
[344862687,1733839904204,-619.14,0.00012398,2]
[344862688,1733839904213,-619.14,0.00012398,2]
[344862689,1733839904223,-619.14,0.00012398,2]
[344862690,1733839904232,-900.6,0.00012398,2]
[344862691,1733839904242,-900.6,0.00012398,2]
[344862692,1733839904251,-900.6,0.00012398,2]
[344862693,1733839904261,-1451.42,0.00012398,2]
[344862694,1733839904270,-1451.42,0.00012398,2]
[344862695,1733839904279,-1451.42,0.00012398,2]
[344862696,1733839904289,-775.51,0.00012398,2]
[344862697,1733839904298,-775.51,0.00012398,2]
[344862698,1733839904308,-775.51,0.00012398,2]
[344862699,1733839904319,-1023.45,0.00012398,2]
[344862700,1733839904328,-1023.45,0.00012398,2]
[344862701,1733839904342,-1023.45,0.00012398,2]
[344862702,1733839904352,-1522.77,0.00012398,2]
[344862703,1733839904361,-1522.77,0.00012398,2]
[344862704,1733839904371,-1522.77,0.00012398,2]
[344862705,1733839904380,-723.59,0.00012398,2]
[344862706,1733839904390,-723.59,0.00012398,2]
[344862707,1733839904399,-723.59,0.00012398,2]
[344862708,1733839904409,-500.0,0.00012398,2]
[344862709,1733839904418,-500.0,0.00012398,2]
[344862710,1733839904427,-500.0,0.00012398,2]
[344862711,1733839904436,-1752.83,0.00012398,2]
[344862712,1733839904446,-1752.83,0.00012398,2]
[344862713,1733839904456,-1752.83,0.00012398,2]
[344862714,1733839904465,-1232.23,0.00012398,2]
[344862715,1733839904475,-1232.23,0.00012398,2]
[344862716,1733839904486,-1232.23,0.00012398,2]
[344862717,1733839904498,-871.02,0.00012398,2]
[344862718,1733839904508,-871.02,0.00012398,2]
[344862719,1733839904715,-871.02,0.00012398,2]
[344862720,1733839904726,-1850.48,0.00012398,2]
[344862721,1733839904736,-1850.48,0.00012398,2]
[344862722,1733839904746,-1850.48,0.00012398,2]
[344862723,1733839904755,-1884.09,0.00012398,2]
[344862724,1733839904765,-1884.09,0.00012398,2]
[344862725,1733839904775,-1884.09,0.00012398,2]
[344862726,1733839904784,-662.39,0.00012398,2]
[344862727,1733839904793,-662.39,0.00012398,2]
[344862728,1733839904803,-662.39,0.00012398,2]
[344862729,1733839904812,-486.5878914,0.00012398,2]
[344862730,1733839904822,-1257.96,0.00012398,2]
[344862731,1733839904831,-1257.96,0.00012398,2]
[344862732,1733839904845,-1257.96,0.00012398,2]
[344862733,1733839904855,-500.0,0.00012398,2]
[344862734,1733839904864,-500.0,0.00012398,2]
[344862735,1733839904874,-500.0,0.00012398,2]
[344862736,1733839904883,-504.03,0.00012398,2]
[344862737,1733839904892,-504.03,0.00012398,2]
[344862738,1733839904901,-504.03,0.00012398,2]
[344862739,1733839904911,-926.29,0.00012398,2]
[344862740,1733839904920,-926.29,0.00012398,2]
[344862741,1733839904929,-926.29,0.00012398,2]
[344862742,1733839904938,-500.0,0.00012398,2]
[344862743,1733839904948,-500.0,0.00012398,2]
[344862744,1733839904958,-500.0,0.00012398,2]
[344862745,1733839904967,-500.0,0.00012398,2]
[344862746,1733839904977,-500.0,0.00012398,2]
[344862747,1733839904986,-500.0,0.00012398,2]
[344862748,1733839904996,-671.79,0.00012398,2]
[344862749,1733839905005,-671.79,0.00012398,2]
[344862750,1733839905015,-671.79,0.00012398,2]
[344862751,1733839905025,-500.0,0.00012398,2]
[344862752,1733839905034,-500.0,0.00012398,2]
[344862753,1733839905044,-554.7,0.00012398,2]
[344862754,1733839905054,-551.96,0.00012398,2]
[344862755,1733839905063,-551.96,0.00012398,2]
[344862756,1733839905072,-551.96,0.00012398,2]
[344862757,1733839905082,-500.0,0.00012398,2]
[344862758,1733839905099,-500.0,0.00012398,2]
[344862759,1733839905108,-500.0,0.00012398,2]
[344862760,1733839905118,-500.0,0.00012398,2]
[344862761,1733839905127,-500.0,0.00012398,2]
[344862762,1733839905137,-500.0,0.00012398,2]
[344862763,1733839905147,-776.4,0.00012398,2]
[344862764,1733839905156,-776.4,0.00012398,2]
[344862765,1733839905166,-776.4,0.00012398,2]
[344862766,1733839905176,-848.11,0.00012398,2]
[344862767,1733839905186,-848.11,0.00012398,2]
[344862768,1733839905195,-848.11,0.00012398,2]
[344862769,1733839905205,-3447.48,0.00012398,2]
[344862770,1733839905214,-3447.48,0.00012398,2]
[344862771,1733839905223,-3447.48,0.00012398,2]
[344862772,1733839905232,-500.0,0.00012398,2]
[344862773,1733839905242,-500.0,0.00012398,2]
[344862774,1733839905251,-500.0,0.00012398,2]
[344862775,1733839905260,-500.0,0.00012398,2]
[344862776,1733839905270,-500.0,0.00012398,2]
[344862777,1733839905279,-500.0,0.00012398,2]
[344862778,1733839905289,-635.02,0.00012398,2]
[344862779,1733839905298,-635.02,0.00012398,2]
[344862780,1733839905307,-635.02,0.00012398,2]
[344862781,1733839905317,-53333.71278274,0.00012399,2]
[344862782,1733839905326,-53333.71278266,0.00012399,2]
[344862783,1733839905335,-53333.71278266,0.00012399,2]
[344862784,1733839905348,-53333.71278266,0.00012399,2]
[344862785,1733839905357,-53333.71278266,0.00012399,2]
[344862786,1733839905366,-53333.71278266,0.00012399,2]
[344862787,1733839905376,-53333.71278266,0.00012399,2]
[344862788,1733839905386,-53333.71278266,0.00012399,2]
[344862789,1733839905396,-44992.74333007,0.00012399,2]
[344862790,1733839905406,-44992.74333004,0.00012399,2]
[344862791,1733839905416,-44992.74333004,0.00012399,2]
[344862792,1733839905425,-44992.74333004,0.00012399,2]
[344862793,1733839905435,-44992.74333004,0.00012399,2]
[344862794,1733839905445,-44992.74333004,0.00012399,2]
[344862795,1733839905455,-44992.74333004,0.00012399,2]
[344862796,1733839905465,-44992.74333004,0.00012399,2]
[344862797,1733839905475,-44992.74333004,0.00012399,2]
[344862798,1733839905487,-44992.74333004,0.00012399,2]
[344862799,1733839905497,-1503.81651966,0.00012422,2]
[344862800,1733839905508,-150.0,0.00012436,2]
[344862801,1733839905519,-150.0,0.0001244,2]
[344862802,1733839905529,-150.0,0.00012443,2]
[344862803,1733839905539,-150.0,0.00012471,2]
[344862804,1733839905548,-150.0,0.00012474,2]
[344862805,1733839905557,-642.3,0.00012476,2]
[344862806,1733839905569,-1372.5,0.00012476,2]
[344862807,1733839905580,-500.0,0.00012476,2]
[344862808,1733839905594,-2382.05,0.00012476,2]
[344862809,1733839905605,-619.14,0.00012476,2]
[344862810,1733839905614,-900.6,0.00012476,2]
[344862811,1733839905624,-1451.42,0.00012476,2]
[344862812,1733839905634,-775.51,0.00012476,2]
[344862813,1733839905644,-1023.45,0.00012476,2]
[344862814,1733839905653,-1522.77,0.00012476,2]
[344862815,1733839905663,-723.59,0.00012476,2]
[344862816,1733839905672,-500.0,0.00012476,2]
[344862817,1733839905682,-1752.83,0.00012476,2]
[344862818,1733839905692,-1232.23,0.00012476,2]
[344862819,1733839905702,-871.02,0.00012476,2]
[344862820,1733839905711,-1850.48,0.00012476,2]
[344862821,1733839905721,-1884.09,0.00012476,2]
[344862822,1733839905731,-662.39,0.00012476,2]
[344862823,1733839905740,-1257.96,0.00012476,2]
[344862824,1733839905750,-500.0,0.00012476,2]
[344862825,1733839905760,-504.03,0.00012476,2]
[344862826,1733839905769,-926.29,0.00012476,2]
[344862827,1733839905779,-500.0,0.00012476,2]
[344862828,1733839905789,-354.23591399,0.00012476,2]
[344862829,1733839905799,-671.79,0.00012476,2]
[344862830,1733839905808,-551.96,0.00012476,2]
[344862831,1733839905818,-500.0,0.00012476,2]
[344862832,1733839905827,-500.0,0.00012476,2]
[344862833,1733839905837,-776.4,0.00012476,2]
[344862834,1733839905851,-848.11,0.00012476,2]
[344862835,1733839905861,-3447.48,0.00012476,2]
[344862836,1733839905870,-500.0,0.00012476,2]
[344862837,1733839905880,-435.36466236,0.00012476,2]
[344862838,1733839905889,-635.02,0.00012476,2]
[344862839,1733839905899,-150.0,0.0001249,2]
[344862840,1733839905909,-150.0,0.000125,2]
[344862841,1733839905919,-150.0,0.00012515,2]
[344862842,1733839905928,-150.0,0.00012521,2]
[344862843,1733839905938,-150.0,0.00012528,2]
[344862844,1733839905948,-150.0,0.00012551,2]
[344862845,1733839905958,-150.0,0.00012553,2]
[344862846,1733839905967,-675.30474198,0.0001256,2]
[344862847,1733839905977,-170.97,0.00012572,2]
[344862848,1733839905987,-150.0,0.00012579,2]
[344862849,1733839905996,-150.0,0.0001258,2]
[344862850,1733839906006,-150.0,0.00012592,2]
[344862851,1733839906015,-1500.0,0.00012626,2]
[344862852,1733839906025,-1500.0,0.00012637,2]
[344862853,1733839906034,-1429.02,0.00012667,2]
[344862854,1733839906044,-150.0,0.00012686,2]
[344862855,1733839906055,-150.0,0.00012686,2]
[344862856,1733839906065,-150.0,0.0001269,2]
[344862857,1733839906075,-150.0,0.00012717,2]
[344862858,1733839906084,-1500.0,0.00012724,2]
[344862859,1733839906097,-1500.0,0.00012771,2]
[344862860,1733839906106,-150.0,0.00012775,2]
[344862861,1733839906115,-428.09146526,0.00012778,2]
[344862862,1733839906125,-150.0,0.00012784,2]
[344862863,1733839906135,-150.0,0.0001279,2]
[344862864,1733839906144,-150.0,0.00012799,2]
[344862865,1733839906154,-1000.0,0.000128,2]
[344862866,1733839906163,-3600.0,0.000128,4]
[344862867,1733839906173,-1500.0,0.00012801,2]
[344862868,1733839906182,-1500.0,0.00012828,2]
[344862869,1733839906191,-150.0,0.00012838,2]
[344862870,1733839906200,-1200.0,0.00012842,2]
[344862871,1733839906210,-274.05,0.00012843,2]
[344862872,1733839906220,-150.0,0.00012859,2]
[344862873,1733839906230,-150.0,0.00012871,2]
[344862874,1733839906239,-642.3,0.00012878,2]
[344862875,1733839906248,-1372.5,0.00012878,2]
[344862876,1733839906258,-500.0,0.00012878,2]
[344862877,1733839906267,-2382.05,0.00012878,2]
[344862878,1733839906277,-619.14,0.00012878,2]
[344862879,1733839906287,-900.6,0.00012878,2]
[344862880,1733839906296,-1451.42,0.00012878,2]
[344862881,1733839906306,-775.51,0.00012878,2]
[344862882,1733839906316,-1023.45,0.00012878,2]
[344862883,1733839906326,-1522.77,0.00012878,2]
[344862884,1733839906335,-723.59,0.00012878,2]
[344862885,1733839906348,-500.0,0.00012878,2]
[344862886,1733839906357,-1752.83,0.00012878,2]
[344862887,1733839906366,-1232.23,0.00012878,2]
[344862888,1733839906375,-871.02,0.00012878,2]
[344862889,1733839906385,-1850.48,0.00012878,2]
[344862890,1733839906394,-1884.09,0.00012878,2]
[344862891,1733839906403,-662.39,0.00012878,2]
[344862892,1733839906413,-1257.96,0.00012878,2]
[344862893,1733839906422,-500.0,0.00012878,2]
[344862894,1733839906431,-504.03,0.00012878,2]
[344862895,1733839906440,-926.29,0.00012878,2]
[344862896,1733839906450,-500.0,0.00012878,2]
[344862897,1733839906459,-671.79,0.00012878,2]
[344862898,1733839906469,-551.96,0.00012878,2]
[344862899,1733839906479,-455.85538479,0.00012878,2]
[344862900,1733839906491,-500.0,0.00012878,2]
[344862901,1733839906500,-776.4,0.00012878,2]
[344862902,1733839906511,-848.11,0.00012878,2]
[344862903,1733839906520,-3447.48,0.00012878,2]
[344862904,1733839906530,-294.95700994,0.00012878,2]
[344862905,1733839906540,-635.02,0.00012878,2]
[344862906,1733839906549,-500.0,0.00012879,2]
[344862907,1733839906559,-500.0,0.00012879,2]
[344862908,1733839906568,-500.0,0.00012879,2]
[344862909,1733839906577,-500.0,0.00012879,2]
[344862910,1733839906586,-607.15,0.00012879,2]
[344862911,1733839906599,-500.0,0.00012879,2]
[344862912,1733839906608,-597.97742622,0.00012879,2]
[344862913,1733839906618,-441.09,0.00012879,2]
[344862914,1733839906627,-500.0,0.00012879,2]
[344862915,1733839906636,-1190.83,0.00012879,2]
[344862916,1733839906645,-1190.83,0.00012879,2]
[344862917,1733839906654,-1190.83,0.00012879,2]
[344862918,1733839906663,-1190.83,0.00012879,2]
[344862919,1733839906673,-1190.83,0.00012879,2]
[344862920,1733839906683,-500.0,0.00012879,2]
[344862921,1733839906692,-500.0,0.00012879,2]
[344862922,1733839906701,-500.0,0.00012879,2]
[344862923,1733839906710,-500.0,0.00012879,2]
[344862924,1733839906719,-500.0,0.00012879,2]
[344862925,1733839906728,-500.0,0.00012879,2]
[344862926,1733839906737,-500.0,0.00012879,2]
[344862927,1733839906746,-500.0,0.00012879,2]
[344862928,1733839906755,-500.0,0.00012879,2]
[344862929,1733839906764,-500.0,0.00012879,2]
[344862930,1733839906773,-826.19,0.00012879,2]
[344862931,1733839906782,-826.19,0.00012879,2]
[344862932,1733839906791,-826.19,0.00012879,2]
[344862933,1733839906800,-826.19,0.00012879,2]
[344862934,1733839906809,-826.19,0.00012879,2]
[344862935,1733839906818,-549.71,0.00012879,2]
[344862936,1733839906827,-549.71,0.00012879,2]
[344862937,1733839906836,-549.71,0.00012879,2]
[344862938,1733839906850,-549.71,0.00012879,2]
[344862939,1733839906859,-549.71,0.00012879,2]
[344862940,1733839906868,-743.29,0.00012879,2]
[344862941,1733839906878,-743.29,0.00012879,2]
[344862942,1733839906887,-743.29,0.00012879,2]
[344862943,1733839906896,-743.29,0.00012879,2]
[344862944,1733839906905,-743.29,0.00012879,2]
[344862945,1733839906914,-500.0,0.00012879,2]
[344862946,1733839906923,-500.0,0.00012879,2]
[344862947,1733839906932,-586.13605275,0.00012879,2]
[344862948,1733839906941,-500.0,0.00012879,2]
[344862949,1733839906950,-500.0,0.00012879,2]
[344862950,1733839906959,-500.0,0.00012879,2]
[344862951,1733839906968,-500.0,0.00012879,2]
[344862952,1733839906977,-500.0,0.00012879,2]
[344862953,1733839906986,-500.0,0.00012879,2]
[344862954,1733839906995,-500.0,0.00012879,2]
[344862955,1733839907005,-500.0,0.00012879,2]
[344862956,1733839907013,-500.0,0.00012879,2]
[344862957,1733839907022,-500.0,0.00012879,2]
[344862958,1733839907189,-500.0,0.00012879,2]
[344862959,1733839907198,-500.0,0.00012879,2]
[344862960,1733839907207,-500.0,0.00012879,2]
[344862961,1733839907216,-500.0,0.00012879,2]
[344862962,1733839907226,-500.0,0.00012879,2]
[344862963,1733839907235,-500.0,0.00012879,2]
[344862964,1733839907245,-500.0,0.00012879,2]
[344862965,1733839907254,-500.0,0.00012879,2]
[344862966,1733839907263,-500.0,0.00012879,2]
[344862967,1733839907272,-500.0,0.00012879,2]
[344862968,1733839907281,-500.0,0.00012879,2]
[344862969,1733839907291,-500.0,0.00012879,2]
[344862970,1733839907300,-500.0,0.00012879,2]
[344862971,1733839907309,-500.0,0.00012879,2]
[344862972,1733839907319,-500.0,0.00012879,2]
[344862973,1733839907328,-1800.03,0.00012879,2]
[344862974,1733839907337,-1800.03,0.00012879,2]
[344862975,1733839907352,-513.5190677,0.00012879,2]
[344862976,1733839908133,-251.40050981,0.00012879,2]
[344862977,1733839908152,-500.0,0.00010958,2]
[344862978,1733839908162,-1035.11042249,0.00012879,2]
[344862979,1733839908175,-801.75890951,0.00012879,2]
[344862980,1733839908355,-496.06666257,0.000109,2]
[344862981,1733839908382,-285.48972395,0.000109,2]
[344862982,1733839908403,-46.44361348,0.000109,2]
[344862983,1733839908421,-883.48618272,0.00010958,2]
[344862984,1733839908443,-375.20381728,0.00010958,2]
[344862985,1733839908459,-265.59518458,0.00010958,2]
[344862986,1733839908504,-992.46997807,0.000109,2]
[344862987,1733839908523,-234.40481542,0.00010958,2]
[344862988,1733839908542,-1258.69,0.00010958,2]
[344862989,1733839908558,-1258.69,0.00010958,2]
[344862990,1733839908575,-500.0,0.00010958,2]
[344862991,1733839908592,-1258.69,0.00010958,2]
[344862992,1733839908609,-500.0,0.00010958,2]
[344862993,1733839908624,-500.0,0.00010958,2]
[344862994,1733839908642,-1258.69,0.00010958,2]
[344862995,1733839908658,-15181.14727352,0.00012399,2]
[344862996,1733839908676,-11175.054306,0.00012399,2]
[344862997,1733839908728,-471.38295185,0.00010958,2]
[344862998,1733839908744,-199.68704824,0.00010998,2]
[344862999,1733839909029,-1059.00295176,0.00010998,2]
[344863000,1733839909038,-1258.69,0.00011096,2]
[344863001,1733839909048,-1258.69,0.00011097,2]
[344863002,1733839909057,-1258.69,0.00011097,2]
[344863003,1733839909067,-1059.75617137,0.00011097,2]
[344863004,1733839909078,-198.93382863,0.00011097,2]
[344863005,1733839909088,-810.25754638,0.00011097,2]
[344863006,1733839909103,-448.43245362,0.00011097,2]
[344863007,1733839909113,-1258.69,0.00011098,2]
[344863008,1733839909123,-1258.69,0.00011098,2]
[344863009,1733839909132,-1258.69,0.00011098,2]
[344863010,1733839909141,-1258.69,0.00011098,2]
[344863011,1733839909151,-1258.69,0.00011098,2]
[344863012,1733839909161,-1258.69,0.00011098,2]
[344863013,1733839909170,-26977.51120314,0.00012399,2]
[344863014,1733839909180,-998.27109049,0.00012879,2]
[344863015,1733839909189,-1800.03,0.00012879,2]
[344863016,1733839909199,-380.25941893,0.00012879,2]
[344863017,1733839909209,-500.0,0.00012879,2]
[344863018,1733839909222,-500.0,0.00012879,2]
[344863019,1733839909233,-500.0,0.00012879,2]
[344863020,1733839909243,-500.0,0.00012879,2]
[344863021,1733839909253,-500.0,0.00012879,2]
[344863022,1733839909263,-500.0,0.00012879,2]
[344863023,1733839909273,-500.0,0.00012879,2]
[344863024,1733839909283,-500.0,0.00012879,2]
[344863025,1733839909293,-500.0,0.00012879,2]
[344863026,1733839909303,-500.0,0.00012879,2]
[344863027,1733839909313,-500.0,0.00012879,2]
[344863028,1733839909323,-500.0,0.00012879,2]
[344863029,1733839909332,-289.6,0.00012879,2]
[344863030,1733839909345,-500.0,0.00012879,2]
[344863031,1733839909355,-500.0,0.00012879,2]
[344863032,1733839909364,-501.65215868,0.00012879,2]
[344863033,1733839909374,-500.0,0.00012879,2]
[344863034,1733839909383,-500.0,0.00012879,2]
[344863035,1733839909392,-500.0,0.00012879,2]
[344863036,1733839909403,-500.0,0.00012879,2]
[344863037,1733839909412,-315.46654611,0.00012879,2]
[344863038,1733839909421,-612.45556596,0.00012879,2]
[344863039,1733839909430,-535.39,0.00012879,2]
[344863040,1733839909439,-535.39,0.00012879,2]
[344863041,1733839909448,-535.39,0.00012879,2]
[344863042,1733839909457,-535.39,0.00012879,2]
[344863043,1733839909466,-535.39,0.00012879,2]
[344863044,1733839909475,-624.27,0.00012879,2]
[344863045,1733839909485,-624.27,0.00012879,2]
[344863046,1733839909495,-624.27,0.00012879,2]
[344863047,1733839909504,-624.27,0.00012879,2]
[344863048,1733839909514,-624.27,0.00012879,2]
[344863049,1733839909525,-500.0,0.00012879,2]
[344863050,1733839909534,-500.0,0.00012879,2]
[344863051,1733839909544,-500.0,0.00012879,2]
[344863052,1733839909554,-500.0,0.00012879,2]
[344863053,1733839909566,-500.0,0.00012879,2]
[344863054,1733839909576,-1036.45,0.00012879,2]
[344863055,1733839909586,-1036.45,0.00012879,2]
[344863056,1733839909599,-1036.45,0.00012879,2]
[344863057,1733839909609,-1036.45,0.00012879,2]
[344863058,1733839909619,-1036.45,0.00012879,2]
[344863059,1733839910203,-500.0,0.00012879,2]
[344863060,1733839910222,-500.0,0.00012879,2]
[344863061,1733839910239,-577.57,0.00012879,2]
[344863062,1733839910252,-577.57,0.00012879,2]
[344863063,1733839910263,-577.57,0.00012879,2]
[344863064,1733839910272,-577.57,0.00012879,2]
[344863065,1733839910282,-577.57,0.00012879,2]
[344863066,1733839910291,-500.0,0.00012879,2]
[344863067,1733839910300,-500.0,0.00012879,2]
[344863068,1733839910309,-348.93962047,0.00012879,2]
[344863069,1733839910318,-642.3,0.00012879,2]
[344863070,1733839910327,-500.0,0.00012879,2]
[344863071,1733839910337,-642.3,0.00012879,2]
[344863072,1733839910348,-500.0,0.00012879,2]
[344863073,1733839910358,-642.3,0.00012879,2]
[344863074,1733839910367,-500.0,0.00012879,2]
[344863075,1733839910377,-500.0,0.00012879,2]
[344863076,1733839910386,-642.3,0.00012879,2]
[344863077,1733839910395,-500.0,0.00012879,2]
[344863078,1733839910404,-642.3,0.00012879,2]
[344863079,1733839910414,-500.0,0.00012879,2]
[344863080,1733839910423,-642.40798146,0.00012879,2]
[344863081,1733839910432,-500.0,0.00012879,2]
[344863082,1733839910441,-500.0,0.00012879,2]